bitfinex/quotes_ETHUSD_20240916
["timestamp","ask_amount","ask_price","bid_price","bid_amount"]
[1726513227379,1.86707765,2295.0,2294.9,11.77293048]
[1726513227380,0.49374833,2295.0,2294.9,11.77293048]
[1726513227740,0.49374833,2295.0,2294.9,10.88156589]
[1726513231572,0.49374833,2295.0,2294.9,6.52408589]
[1726513237273,0.49374833,2295.0,2294.9,10.88156589]
[1726513237482,0.49374833,2295.0,2294.9,6.52408589]
[1726513238491,0.49374833,2295.0,2294.9,13.23586589]
[1726513238789,0.0376314,2295.0,2294.9,15.29066485]
[1726513241052,0.0376314,2295.0,2294.9,14.74066485]
[1726513244366,0.0376314,2295.0,2294.9,13.23586589]
[1726513245402,1.81701963,2295.3,2295.0,4.35715]
[1726513245593,1.81701963,2295.3,2295.1,4.35709]
[1726513245795,1.81701963,2295.3,2295.1,0.16612484]
[1726513246109,1.81701963,2295.3,2295.1,4.52320484]
[1726513246680,1.81701963,2295.3,2295.1,0.16612484]
[1726513246873,1.37327746,2295.2,2295.1,0.16612484]
[1726513247098,1.81701963,2295.3,2295.1,0.16612484]
[1726513247477,1.37327746,2295.2,2295.1,0.16612484]
[1726513248028,1.37327746,2295.2,2294.9,6.35739]
[1726513248197,1.37327746,2295.2,2295.1,0.16612484]
[1726513248393,1.37327746,2295.2,2294.9,6.35739]
[1726513248702,1.37327746,2295.2,2295.1,0.16612484]
[1726513248911,1.37327746,2295.2,2295.0,4.52350731]
[1726513249074,1.37327746,2295.2,2295.1,0.16612484]
[1726513250223,1.37327746,2295.2,2294.9,10.71476]
[1726513250375,1.37327746,2295.2,2295.1,0.16603272]
[1726513250573,1.37327746,2295.2,2294.9,10.71476]
[1726513250910,1.37327746,2295.2,2295.1,0.16603272]
[1726513251116,1.37327746,2295.2,2295.0,0.16612519]
[1726513251269,1.37327746,2295.2,2295.1,0.16603272]
[1726513251615,1.37327746,2295.2,2294.9,10.71476]
[1726513251789,1.37327746,2295.2,2295.1,0.16603272]
[1726513251974,1.37327746,2295.2,2294.9,10.71476]
[1726513252174,1.37327746,2295.2,2295.1,0.16603272]
[1726513252476,1.37327746,2295.2,2294.9,6.35738]
[1726513252812,1.37327746,2295.2,2295.0,0.16612519]
[1726513257393,1.37327746,2295.2,2295.0,4.52341519]
[1726513260297,1.37327746,2295.1,2295.0,4.52341519]
[1726513260533,1.37327746,2295.2,2295.0,4.52341519]
[1726513260950,1.37327746,2295.2,2295.1,4.3571]
[1726513261108,1.37327746,2295.2,2295.1,6.7235]
[1726513261308,1.81701963,2295.3,2295.1,6.88962482]
[1726513262847,0.44374217,2295.3,2295.1,6.88962482]
[1726513263011,1.81701963,2295.3,2295.1,6.88962482]
[1726513263206,0.44374217,2295.3,2295.1,6.88962482]
[1726513263608,1.81701963,2295.3,2295.1,6.88962482]
[1726513264214,0.44374217,2295.3,2295.1,6.88962482]
[1726513264620,1.81701963,2295.3,2295.1,6.88962482]
[1726513265432,1.81701963,2295.3,2295.1,4.52322482]
[1726513265616,1.81701963,2295.3,2295.1,0.16612482]
[1726513265819,1.83103661,2295.2,2295.1,0.16612482]
[1726513266019,3.64316036,2295.2,2294.9,2.0]
[1726513266218,6.18927488,2295.0,2294.9,2.0]
[1726513266632,12.81641442,2295.0,2294.9,2.0]
[1726513266831,36.02047916,2295.0,2294.9,2.0]
[1726513267036,39.4784213,2295.0,2294.9,2.0]
[1726513267235,36.73076849,2295.0,2294.9,2.0]
[1726513267538,34.91864474,2295.0,2294.9,2.0]
[1726513268529,36.73076849,2295.0,2294.9,2.0]
[1726513268722,34.91864474,2295.0,2294.9,2.0]
[1726513268918,34.20695917,2295.0,2294.9,2.0]
[1726513269860,29.84966917,2295.0,2294.9,2.0]
[1726513270480,21.59578491,2295.0,2294.9,2.0]
[1726513271264,25.95307491,2295.0,2294.9,2.0]
[1726513274240,25.95307491,2295.0,2294.9,2.1606052]
[1726513275157,32.12248866,2295.0,2294.9,2.1606052]
[1726513275375,32.57931693,2295.0,2294.9,2.0]
[1726513275550,35.7915658,2295.0,2294.9,2.0]
[1726513275748,40.14788164,2295.0,2294.9,2.0]
[1726513275987,43.606431,2295.0,2294.9,2.0]
[1726513276885,40.86097982,2295.0,2294.9,2.0]
[1726513277387,47.70022554,2295.0,2294.9,2.0]
[1726513277548,49.50710541,2295.0,2294.9,2.0]
[1726513277748,48.96605231,2295.0,2294.9,2.0]
[1726513278184,40.86097982,2295.0,2294.9,2.0]
[1726513280712,43.59826849,2295.0,2294.9,2.0]
[1726513281106,40.86097982,2295.0,2294.9,2.0]
[1726513281312,43.59844065,2295.0,2294.9,2.0]
[1726513283268,39.04885607,2295.0,2294.9,2.0]
[1726513283593,39.92821097,2295.0,2294.9,2.0]
[1726513284006,37.64873095,2295.0,2294.9,2.0]
[1726513286306,39.92879627,2295.0,2294.9,2.0]
[1726513287447,37.64873095,2295.0,2294.9,2.0]
[1726513294603,39.92678018,2295.0,2294.9,2.0]
[1726513294803,41.88305864,2295.0,2294.9,2.0]
[1726513303183,44.61846476,2295.0,2294.9,2.0]
[1726513303531,44.62215463,2295.0,2294.9,2.0]
[1726513305829,4.35843,2294.4,2294.3,2.3573]
[1726513306156,20.1931672,2294.4,2294.3,2.3573]
[1726513306460,24.5515972,2294.4,2294.3,2.3573]
[1726513306766,4.35877,2294.3,2293.8,2.3573]
[1726513307060,4.35938,2293.9,2293.8,2.3573]
[1726513307356,4.35923,2294.0,2293.8,2.3573]
[1726513308025,8.71826,2294.1,2293.8,2.3573]
[1726513308224,20.1935572,2294.2,2293.9,2.52008947]
[1726513308425,4.3591,2294.1,2293.9,2.52008947]
[1726513310239,20.1935572,2294.2,2293.9,2.66208947]
[1726513310437,4.35909,2294.1,2293.9,2.66208947]
[1726513311469,4.35919,2294.0,2293.9,2.66208947]
[1726513311678,20.1939272,2294.0,2293.9,2.4993]
[1726513312038,24.5531172,2294.0,2293.9,0.142]
[1726513312238,28.87951328,2294.0,2293.9,0.142]
[1726513313281,25.92329178,2294.0,2293.9,0.142]
[1726513318090,25.92329178,2294.0,2293.9,0.30539971]
[1726513318272,25.92329178,2294.0,2293.9,0.142]
[1726513319227,24.5531172,2294.0,2293.9,0.142]
[1726513319388,15.6927372,2293.9,2293.2,2.4582]
[1726513319596,6.17239375,2293.5,2293.2,2.4582]
[1726513319887,11.90482381,2293.4,2293.3,0.16402741]
[1726513320088,11.90482381,2293.4,2292.9,0.0376314]
[1726513320089,4.36088,2293.2,2293.0,2.2972]
[1726513320304,4.36058,2293.3,2293.0,2.2972]
[1726513320305,6.17302375,2293.1,2293.0,2.2972]
[1726513320477,6.17302375,2293.1,2292.9,0.0376314]
[1726513320478,8.72218,2293.0,2292.9,0.0376314]
[1726513320675,10.09437802,2293.0,2292.9,0.0376314]
[1726513321271,10.55156674,2293.0,2292.9,0.0376314]
[1726513321472,26.09430394,2293.0,2292.9,0.0376314]
[1726513321675,29.87017936,2293.0,2292.9,0.0376314]
[1726513322301,28.49924489,2293.0,2292.9,0.0376314]
[1726513323021,37.68972163,2293.0,2292.9,0.0376314]
[1726513323179,37.68464423,2293.0,2292.9,0.0376314]
[1726513323379,37.68462695,2293.0,2292.9,0.0376314]
[1726513323611,37.68445403,2293.0,2292.9,0.0376314]
[1726513323811,35.13548778,2293.0,2292.9,0.0376314]
[1726513324124,37.25180652,2293.0,2292.9,0.0376314]
[1726513324279,36.79480327,2293.0,2292.9,0.0376314]
[1726513324481,21.27094309,2293.0,2292.9,0.0376314]
[1726513324693,19.9038272,2293.0,2292.9,0.0376314]
[1726513324893,19.9038272,2293.0,2292.9,0.20202931]
[1726513325244,19.9038272,2293.0,2292.9,0.0376314]
[1726513325398,19.9038272,2293.0,2292.9,0.20202931]
[1726513325805,19.9038272,2293.0,2292.9,0.0376314]
[1726513326722,19.9038272,2293.0,2292.9,0.20202931]
[1726513328805,15.5427372,2293.0,2292.9,0.20202931]
[1726513330005,19.9038272,2293.0,2292.9,0.20202931]
[1726513330208,19.9038272,2293.0,2292.9,0.0376314]
[1726513334499,15.5427372,2293.0,2292.9,0.0376314]
[1726513335139,15.5427372,2293.0,2292.9,0.20299478]
[1726513338201,15.5427372,2293.0,2292.9,2.64039478]
[1726513340607,19.9038272,2293.0,2292.9,2.64039478]
[1726513340944,19.9038272,2293.0,2292.9,0.0376314]
[1726513341346,19.9038272,2293.0,2292.9,0.20357255]
[1726513341504,19.9038272,2293.0,2292.9,0.0376314]
[1726513341706,19.9038272,2293.0,2292.9,0.20357912]
[1726513341936,19.9038272,2293.0,2292.9,0.0376314]
[1726513342146,19.9038272,2293.0,2292.9,0.20357912]
[1726513342330,19.9038272,2293.0,2292.9,0.0376314]
[1726513342509,19.9038272,2293.0,2292.9,0.20357912]
[1726513342712,15.5427372,2293.0,2292.9,2.51277912]
[1726513346108,15.5427372,2293.0,2292.9,0.20357912]
[1726513348250,26.69135792,2293.0,2292.9,0.20357912]
[1726513348406,34.05244792,2293.0,2292.9,0.0376314]
[1726513348615,4.36214,2292.5,2292.2,2.3685314]
[1726513348811,15.4751058,2292.4,2292.2,2.3685314]
[1726513349219,15.4751058,2292.4,2292.3,0.16651685]
[1726513349466,15.4751058,2292.4,2292.3,2.3309]
[1726513349815,15.4751058,2292.4,2292.3,2.49752855]
[1726513352947,8.28975249,2292.9,2292.3,2.49752855]
[1726513352948,15.4751058,2292.5,2292.3,2.49752855]
[1726513353144,15.4751058,2292.5,2292.3,6.85992855]
[1726513353358,15.4751058,2292.5,2292.3,2.49752855]
[1726513354690,15.4751058,2292.5,2292.3,6.85994855]
[1726513355249,15.4751058,2292.5,2292.3,2.49752855]
[1726513357787,15.4751058,2292.5,2292.3,6.85989855]
[1726513358998,15.4751058,2292.4,2292.3,6.85984855]
[1726513364921,16.84222169,2292.6,2292.5,4.36205]
[1726513365102,1.36711589,2292.7,2292.6,11.124]
[1726513365274,16.84222169,2292.9,2292.8,6.76177]
[1726513365483,16.84222169,2292.9,2292.8,6.92811922]
[1726513365979,15.4751058,2292.9,2292.8,6.92811922]
[1726513369007,16.84222169,2292.9,2292.8,6.92811922]
[1726513369335,16.84222169,2292.9,2292.8,6.76177]
[1726513369511,16.84222169,2292.9,2292.8,6.92789582]
[1726513369858,18.93736334,2292.9,2292.8,0.16612582]
[1726513370046,19.39810369,2292.9,2292.8,0.16612582]
[1726513370199,19.39810369,2292.9,2292.5,4.36201]
[1726513370398,17.30296204,2292.9,2292.8,0.1661521]
[1726513370600,17.30296204,2292.9,2292.5,4.36201]
[1726513370802,1.82785624,2292.9,2292.8,0.1661521]
[1726513371313,1.82785624,2292.9,2292.6,4.36185]
[1726513371553,1.37093317,2292.8,2292.7,0.16624475]
[1726513373661,1.82785624,2292.9,2292.5,4.36197]
[1726513373862,1.82785624,2292.9,2292.6,0.16633741]
[1726513373863,1.37097904,2292.8,2292.6,0.16633741]
[1726513376782,17.73,2292.7,2292.6,0.16633741]
[1726513377980,17.73,2292.7,2292.6,4.52818741]
[1726513378154,19.10097904,2292.7,2292.6,4.52818741]
[1726513378360,17.73,2292.7,2292.6,4.52818741]
[1726513380074,17.73,2292.7,2292.6,6.91908741]
[1726513380255,17.73,2292.7,2292.6,12.40904015]
[1726513382474,19.10097904,2292.9,2292.7,4.36165]
[1726513383369,19.10097904,2292.9,2292.8,0.16591554]
[1726513383874,19.10097904,2292.9,2292.7,4.36165]
[1726513384099,19.10097904,2292.9,2292.8,0.16591554]
[1726513384305,19.10097904,2292.9,2292.8,4.36147]
[1726513384576,17.73,2292.9,2292.8,6.92239867]
[1726513384781,19.10097904,2293.1,2293.0,4.36109]
[1726513385110,19.10097904,2293.1,2293.0,6.75609]
[1726513385413,19.10097904,2293.1,2293.0,6.92182682]
[1726513385615,17.73,2293.1,2293.0,6.92182682]
[1726513386495,17.73,2293.1,2293.0,2.56073682]
[1726513386696,19.10097904,2293.1,2293.0,2.56073682]
[1726513386934,17.73,2293.1,2293.0,2.56073682]
[1726513387137,19.10097904,2293.1,2293.0,6.92182682]
[1726513387646,17.73,2293.1,2293.0,6.92182682]
[1726513387938,19.10097904,2293.1,2293.0,6.92182682]
[1726513388231,17.73,2293.1,2293.0,6.92182682]
[1726513388434,19.10097904,2293.2,2293.0,6.92182682]
[1726513390541,21.85847666,2293.2,2293.0,6.92182682]
[1726513391409,19.10097904,2293.2,2293.0,6.92182682]
[1726513394429,17.73,2293.1,2293.0,6.92182682]
[1726513396029,17.73,2293.1,2293.0,2.56073682]
[1726513396266,17.73,2293.1,2293.0,0.16573682]
[1726513396815,35.82360845,2293.1,2293.0,0.16573682]
[1726513396989,35.82360845,2293.1,2292.2,4.4001214]
[1726513396990,4.36196,2292.6,2292.2,0.0376314]
[1726513397307,22.09206,2292.5,2292.2,0.0376314]
[1726513397454,22.09206,2292.5,2292.3,0.16040899]
[1726513397654,22.09206,2292.5,2292.2,0.0376314]
[1726513397655,20.87639382,2292.5,2292.2,0.0376314]
[1726513399298,20.87639382,2292.5,2292.3,0.16040899]
[1726513399470,17.73,2292.5,2292.3,0.16040899]
[1726513399808,17.73,2292.5,2292.4,0.1603163]
[1726513400030,17.73,2292.5,2292.2,0.0376314]
[1726513400180,17.73,2292.5,2292.4,0.1603163]
[1726513400385,17.73,2292.5,2292.4,4.5225563]
[1726513400590,17.73,2292.5,2292.4,5.64866507]
[1726513401423,17.73,2292.5,2292.4,1.28642507]
[1726513401624,17.73,2292.5,2292.4,0.1603163]
[1726513402328,17.73,2292.5,2292.4,4.5225563]
[1726513404636,17.73,2292.5,2292.4,0.1603163]
[1726513406077,17.73,2292.6,2292.4,0.1603163]
[1726513406521,23.46239503,2292.6,2292.4,0.1603163]
[1726513406824,23.46239503,2292.6,2292.2,0.0376314]
[1726513406825,2.52897351,2292.5,2292.2,0.0376314]
[1726513407030,23.46239503,2292.6,2292.2,0.0376314]
[1726513407230,23.46239503,2292.6,2292.3,0.16071663]
[1726513407832,5.73260503,2292.5,2292.4,0.16062394]
[1726513408325,5.73260503,2292.5,2292.2,0.0376314]
[1726513408706,5.73260503,2292.5,2292.3,0.16114212]
[1726513409115,5.73260503,2292.5,2292.2,0.0376314]
[1726513409324,5.73260503,2292.5,2292.4,0.16106253]
[1726513409657,9.22294571,2292.5,2292.2,0.0376314]
[1726513409784,9.22294571,2292.5,2292.4,0.16106908]
[1726513409988,9.22294571,2292.5,2292.2,0.0376314]
[1726513410187,9.22294571,2292.5,2292.3,0.16116831]
[1726513410386,9.22294571,2292.5,2292.2,0.0376314]
[1726513410643,9.22294571,2292.5,2292.3,0.16116831]
[1726513410989,9.22294571,2292.5,2292.2,0.0376314]
[1726513411203,9.22294571,2292.5,2292.3,0.16116831]
[1726513411428,9.22294571,2292.5,2292.2,0.0376314]
[1726513411629,9.22294571,2292.5,2292.4,0.16107563]
[1726513411839,9.22294571,2292.5,2292.3,0.16116831]
[1726513412099,26.95294571,2292.5,2292.2,0.0376314]
[1726513412327,26.95294571,2292.5,2292.4,0.16107563]
[1726513412501,25.58244068,2292.5,2292.3,0.16116831]
[1726513412702,25.58244068,2292.5,2292.2,0.0376314]
[1726513412913,13.58507571,2292.5,2292.4,0.16107563]
[1726513413113,4.36224,2292.4,2292.3,0.16116831]
[1726513413314,4.36243,2292.3,2292.2,0.0376314]
[1726513413536,5.73357886,2292.3,2292.2,0.0376314]
[1726513414231,5.73338886,2292.4,2292.2,0.0376314]
[1726513414540,10.09575886,2292.4,2292.2,0.0376314]
[1726513414702,11.51665614,2292.4,2292.2,0.0376314]
[1726513418050,17.73,2292.3,2292.2,0.0376314]
[1726513418954,22.09243,2292.3,2292.2,0.0376314]
[1726513420115,17.73,2292.3,2292.2,0.0376314]
[1726513427467,17.73,2292.3,2292.2,0.1992329]
[1726513430068,17.73,2292.3,2292.2,4.5618529]
[1726513430392,17.73,2292.3,2292.2,0.1992329]
[1726513431461,17.73,2292.3,2292.2,6.8138529]
[1726513433000,17.73,2292.3,2292.2,2.4512329]
[1726513433298,17.73,2292.3,2292.2,0.1992329]
[1726513440209,19.10114886,2292.3,2292.2,0.1992329]
[1726513440386,20.25905589,2292.3,2292.2,0.1992329]
[1726513440795,21.63020475,2292.3,2292.2,0.1992329]
[1726513440979,25.99263475,2292.3,2292.2,0.1992329]
[1726513441170,28.26223836,2292.3,2292.2,0.0376314]
[1726513441509,26.44882593,2292.3,2292.2,0.0376314]
[1726513442580,26.9079891,2292.3,2292.2,0.0376314]
[1726513443307,26.45332271,2292.3,2292.2,0.0376314]
[1726513443811,26.45308309,2292.3,2292.2,0.0376314]
[1726513446234,30.81551309,2292.3,2292.2,0.0376314]
[1726513446389,30.79732832,2292.3,2292.2,0.0376314]
[1726513446585,13.06732832,2292.3,2292.2,0.0376314]
[1726513446826,13.06732832,2292.3,2292.2,0.19920673]
[1726513447135,13.06732832,2292.3,2292.2,0.10342911]
[1726513447136,33.26785654,2292.3,2292.2,0.10342911]
[1726513447332,33.26785654,2292.3,2291.6,0.0376314]
[1726513447333,16.09071,2291.7,2291.6,0.0376314]
[1726513447625,25.01298164,2291.7,2291.6,0.0376314]
[1726513447834,25.47052984,2291.7,2291.6,0.0376314]
[1726513448039,18.45412243,2291.7,2291.6,0.0376314]
[1726513448185,4.36481,2291.1,2290.9,0.0376314]
[1726513448387,11.0056671,2291.0,2290.9,0.0376314]
[1726513448898,6.6407671,2291.0,2290.9,0.0376314]
[1726513449331,10.54661177,2291.0,2290.9,0.0376314]
[1726513449889,12.6688589,2291.0,2290.9,0.0376314]
[1726513450084,6.48282103,2291.0,2290.9,0.0376314]
[1726513450282,0.91145768,2291.1,2290.9,0.0376314]
[1726513450790,0.91145768,2291.2,2290.9,0.0376314]
[1726513451188,3.91145768,2291.3,2290.9,0.0376314]
[1726513451503,0.91145768,2291.4,2290.9,4.4026114]
[1726513451716,1.36829934,2291.5,2290.9,4.4026114]
[1726513451717,0.91145768,2291.5,2290.9,4.4026114]
[1726513451917,5.3055397,2291.4,2290.9,0.0376314]
[1726513452126,0.91145768,2291.3,2290.9,0.0376314]
[1726513452428,5.3055397,2291.4,2290.9,0.0376314]
[1726513452637,0.6673839,2291.3,2290.9,0.0376314]
[1726513453131,0.6673839,2291.3,2290.9,4.4027114]
[1726513453285,1.36988014,2291.4,2290.9,4.4027114]
[1726513454498,1.36988014,2291.4,2290.9,0.0376314]
[1726513454925,1.36988014,2291.4,2291.0,0.15371687]
[1726513455294,0.45842246,2291.4,2291.0,0.15371687]
[1726513457835,0.45842246,2291.4,2291.0,4.51853687]
[1726513460237,0.48223825,2291.3,2291.0,4.51853687]
[1726513461717,0.48223825,2291.3,2291.1,4.3647]
[1726513461922,0.45842246,2291.4,2291.1,4.3647]
[1726513462106,0.45842246,2291.4,2291.2,0.15351162]
[1726513462304,4.84541224,2291.6,2291.2,4.51801162]
[1726513462537,0.91145768,2291.9,2291.3,2.3942]
[1726513462748,0.91145768,2292.2,2291.7,4.36357]
[1726513463049,0.91145768,2292.2,2291.8,0.15290921]
[1726513463050,5.0271287,2292.1,2291.8,0.15290921]
[1726513463338,5.0271287,2292.1,2291.6,4.3636]
[1726513463641,0.91145768,2292.3,2291.9,4.36317]
[1726513463895,0.91145768,2292.5,2292.0,2.44946321]
[1726513464012,1.36829934,2292.6,2292.0,2.44946321]
[1726513464013,0.91145768,2292.6,2292.2,4.36258]
[1726513464213,8.29802956,2292.4,2292.3,0.15208511]
[1726513464411,8.29802956,2292.4,2291.8,2.2971]
[1726513464745,5.27353768,2292.5,2291.9,4.51537382]
[1726513464746,1.26601096,2292.3,2291.9,4.51537382]
[1726513464907,4.36208,2292.5,2291.9,4.51537382]
[1726513465100,8.72427,2292.5,2291.9,4.51537382]
[1726513465444,1.39356294,2292.4,2291.9,0.15219382]
[1726513465660,5.75590294,2292.4,2291.9,0.15219382]
[1726513466995,4.36243,2292.3,2291.9,0.15219382]
[1726513469242,12.66165956,2292.0,2291.9,0.15219382]
[1726513469405,12.66165956,2292.0,2291.3,2.3885]
[1726513469406,4.36398,2291.5,2291.3,2.3885]
[1726513469603,4.36398,2291.5,2291.4,0.15261167]
[1726513469815,4.36398,2291.5,2291.1,2.3885]
[1726513469998,4.36398,2291.5,2291.2,0.15279721]
[1726513470207,4.36422,2291.4,2291.2,0.15279721]
[1726513470404,4.36422,2291.4,2291.1,2.3885]
[1726513470642,4.36422,2291.4,2291.2,0.15296101]
[1726513470834,4.36433,2291.3,2291.2,0.15296101]
[1726513471001,4.36466,2291.2,2290.9,2.3381314]
[1726513471205,5.237515,2291.2,2291.0,0.15314658]
[1726513474154,4.36471,2291.1,2291.0,0.15314658]
[1726513474446,10.1260755,2291.1,2291.0,0.15314658]
[1726513474745,8.72942,2291.1,2291.0,0.15314658]
[1726513474912,4.36471,2291.1,2291.0,0.15314658]
[1726513478842,4.36453,2291.2,2291.0,0.15314658]
[1726513479022,9.21108724,2291.5,2291.0,0.15314658]
[1726513479023,4.36407,2291.5,2291.1,2.2965]
[1726513479226,3.91145768,2291.7,2291.2,0.15300031]
[1726513479227,0.91145768,2291.6,2291.2,0.15300031]
[1726513479443,4.36433,2291.3,2290.9,2.3341314]
[1726513479648,4.36433,2291.3,2291.0,0.15318588]
[1726513481820,4.36455,2291.2,2291.0,0.15318588]
[1726513483456,4.36471,2291.1,2291.0,0.15318588]
[1726513484258,12.66507956,2291.1,2291.0,0.15318588]
[1726513484477,18.73275552,2291.1,2291.0,0.15318588]
[1726513484614,18.73275552,2291.1,2290.9,0.0376314]
[1726513484615,8.7298,2291.0,2290.9,0.0376314]
[1726513487096,13.0947,2291.0,2290.9,0.0376314]
[1726513487295,16.0947,2291.0,2290.9,0.0376314]
[1726513487519,18.49600825,2291.0,2290.9,0.0376314]
[1726513487794,19.40746593,2291.0,2290.9,0.0376314]
[1726513489282,28.71486715,2291.0,2290.9,0.0376314]
[1726513489503,32.52943217,2291.0,2290.9,0.0376314]
[1726513489800,34.68337211,2291.0,2290.9,0.0376314]
[1726513490496,31.95056781,2291.0,2290.9,0.0376314]
[1726513494064,27.34656781,2291.0,2290.9,0.0376314]
[1726513494284,29.62344938,2291.0,2290.9,0.0376314]
[1726513494899,27.34656781,2291.0,2290.9,0.0376314]
[1726513495101,29.62347039,2291.0,2290.9,0.0376314]
[1726513495903,27.34656781,2291.0,2290.9,0.0376314]
[1726513502223,22.98166781,2291.0,2290.9,0.0376314]
[1726513502378,24.80012606,2291.0,2290.9,0.0376314]
[1726513503104,21.25012606,2291.0,2290.9,0.0376314]
[1726513503315,20.79530888,2291.0,2290.9,0.0376314]
[1726513504072,23.79530888,2291.0,2290.9,0.0376314]
[1726513504385,19.43040888,2291.0,2290.9,0.0376314]
[1726513504595,18.97601914,2291.0,2290.9,0.0376314]
[1726513505649,15.04035958,2291.0,2290.9,0.0376314]
[1726513505801,11.7298,2291.0,2290.9,0.0376314]
[1726513505999,12.63905133,2291.0,2290.9,0.0376314]
[1726513506217,11.7298,2291.0,2290.9,0.0376314]
[1726513507650,8.7298,2291.0,2290.9,0.0376314]
[1726513507945,5.27390133,2291.2,2290.9,2.5147314]
[1726513508107,4.36464,2291.2,2290.9,2.5147314]
[1726513508303,4.36445,2291.3,2291.0,0.14402506]
[1726513508541,4.36445,2291.3,2291.1,2.4771]
[1726513508850,4.36445,2291.3,2291.2,0.14370876]
[1726513509416,7.36445,2291.3,2291.2,0.14370876]
[1726513510006,11.72889,2291.3,2291.2,0.14370876]
[1726513510207,12.99270413,2291.3,2291.2,0.14370876]
[1726513510450,13.90194546,2291.3,2290.9,0.0376314]
[1726513510610,4.3649,2291.0,2290.9,0.0376314]
[1726513510958,4.3649,2291.0,2290.2,0.0376314]
[1726513510959,1.17643695,2290.9,2289.6,2.4771]
[1726513511261,4.36644,2290.2,2289.6,2.4771]
[1726513511457,4.36644,2290.2,2289.6,4.36752]
[1726513511605,4.36618,2290.4,2289.7,2.353]
[1726513511606,4.36626,2290.3,2289.7,2.353]
[1726513511813,4.36626,2290.3,2289.8,2.353]
[1726513512118,4.36653,2290.2,2289.8,2.353]
[1726513512318,4.36653,2290.2,2289.8,2.67602761]
[1726513512545,4.36624,2290.3,2289.8,2.67602761]
[1726513512713,4.36615,2290.4,2289.8,2.67602761]
[1726513512919,8.73234,2290.4,2289.8,2.67602761]
[1726513513271,4.36629,2290.3,2290.0,2.4699]
[1726513513965,4.36644,2290.2,2290.0,2.4699]
[1726513515166,8.73299,2290.2,2290.0,2.4699]
[1726513515360,4.36644,2290.2,2290.0,2.4699]
[1726513516523,8.73299,2290.2,2290.0,2.4699]
[1726513516863,4.36644,2290.2,2290.0,2.4699]
[1726513517164,8.73301,2290.2,2290.0,2.4699]
[1726513517456,8.73301,2290.2,2290.1,0.13455566]
[1726513518073,4.36644,2290.2,2290.1,0.13455566]
[1726513518371,4.36628,2290.3,2290.1,0.13455566]
[1726513518531,4.36643,2290.2,2290.1,0.13455566]
[1726513520176,2.27432185,2290.4,2290.2,2.3655]
[1726513520366,1.36459311,2290.4,2290.2,2.3655]
[1726513520563,1.36459311,2290.4,2290.3,0.13436994]
[1726513520564,4.36606,2290.4,2290.3,0.13436994]
[1726513520768,5.27539874,2290.6,2290.3,0.13436994]
[1726513520937,5.27539874,2290.6,2290.4,2.3655]
[1726513521139,5.27539874,2290.6,2290.4,2.50087177]
[1726513521433,4.36585,2290.5,2290.4,2.50087177]
[1726513522170,1.36459311,2290.7,2290.4,2.50087177]
[1726513522171,0.90972874,2290.7,2290.4,2.50087177]
[1726513522381,0.90972874,2290.7,2290.4,3.18759995]
[1726513522677,5.27509874,2290.8,2290.5,2.4198]
[1726513522879,5.27509874,2290.8,2290.6,0.13501665]
[1726513523379,0.90972874,2290.8,2290.6,0.13501665]
[1726513524075,0.90972874,2290.8,2290.7,2.2506]
[1726513524260,4.36528,2290.8,2290.7,2.38552383]
[1726513524785,5.72987311,2290.8,2290.7,2.38552383]
[1726513524988,4.36528,2290.8,2290.7,2.38552383]
[1726513525136,5.72987311,2290.8,2290.7,2.38552383]
[1726513526860,5.72987311,2290.8,2290.7,2.2506]
[1726513527178,5.72987311,2290.8,2290.7,2.38545867]
[1726513527747,23.45987311,2290.8,2290.7,2.38545867]
[1726513528145,23.45987311,2290.8,2290.7,2.2506]
[1726513528675,22.09528,2290.8,2290.7,2.2506]
[1726513529386,23.91473748,2290.8,2290.7,2.2506]
[1726513530387,28.28001748,2290.8,2290.7,2.2506]
[1726513531363,23.91473748,2290.8,2290.7,2.2506]
[1726513532366,23.46546973,2290.8,2290.7,2.2506]
[1726513532680,17.73,2290.8,2290.7,2.47566]
[1726513532889,17.73,2290.8,2290.7,2.69229809]
[1726513533695,17.73,2290.9,2290.7,2.69229809]
[1726513534040,18.64343341,2290.9,2290.7,2.69229809]
[1726513534265,17.73,2290.9,2290.7,2.69229809]
[1726513534685,18.64343341,2290.9,2290.7,2.69229809]
[1726513536888,18.64343341,2290.9,2290.7,7.05772809]
[1726513537054,18.64343341,2290.9,2290.7,2.69229809]
[1726513538165,17.73,2290.9,2290.7,2.69229809]
[1726513538367,17.73,2290.9,2290.7,7.05768809]
[1726513538559,18.64343341,2291.0,2290.8,5.50753581]
[1726513538896,18.64343341,2291.0,2290.9,11.23375363]
[1726513539088,0.91343341,2291.0,2290.9,11.23375363]
[1726513541199,0.91343341,2291.0,2290.9,15.16941319]
[1726513541372,0.91343341,2291.0,2290.9,17.23711509]
[1726513543798,0.91343341,2291.0,2290.9,21.60220509]
[1726513543961,1.37016745,2291.1,2291.0,16.013]
[1726513544158,1.81945748,2291.2,2291.0,16.013]
[1726513544370,1.81945748,2291.2,2291.1,17.80665307]
[1726513544775,1.81945748,2291.2,2291.1,22.3864628]
[1726513544976,17.73,2291.6,2291.1,22.3864628]
[1726513544977,17.73,2291.6,2291.3,11.09696]
[1726513545384,17.73,2291.6,2291.3,11.31176284]
[1726513545588,17.73,2291.6,2291.3,12.82579561]
[1726513548404,17.73,2291.6,2291.5,4.36395]
[1726513548603,17.73,2291.9,2291.6,4.36373]
[1726513548811,25.13,2292.0,2291.6,4.36373]
[1726513549009,25.13,2292.0,2291.8,4.36329]
[1726513549010,17.73,2292.0,2291.8,4.36329]
[1726513549209,17.73,2292.0,2291.7,6.85542447]
[1726513549505,17.73,2292.0,2291.8,0.21423004]
[1726513549684,17.73,2292.0,2291.9,4.36319]
[1726513549886,19.54945748,2292.1,2291.9,5.67772573]
[1726513550092,0.0376314,2292.2,2292.1,4.36281]
[1726513550309,0.0376314,2292.2,2292.1,5.59462357]
[1726513550626,0.0376314,2292.2,2292.1,5.80846057]
[1726513555764,0.0376314,2292.2,2292.1,10.17127057]
[1726513555908,0.0376314,2292.2,2292.1,12.48347057]
[1726513556626,0.0376314,2292.2,2292.1,13.03347057]
[1726513556832,0.0376314,2292.2,2292.1,21.33194013]
[1726513558216,0.0376314,2292.2,2292.1,28.69475013]
[1726513560348,0.0376314,2292.2,2292.1,24.33194013]
[1726513560940,0.03445059,2292.2,2292.1,24.33194013]
[1726513561716,0.03445059,2292.2,2292.1,19.96913013]
[1726513562640,0.03445059,2292.2,2292.1,13.03347057]
[1726513562840,0.03445059,2292.2,2292.1,11.251657]